bitfinex/quotes_ETHUSD_20250903
["timestamp","ask_amount","ask_price","bid_price","bid_amount"]
[1756912538543,0.7671,4473.3,4473.2,3.13953608]
[1756912538706,0.7671,4473.3,4473.2,6.94553608]
[1756912538906,0.7671,4473.3,4473.2,0.112]
[1756912538907,1.2711,4473.3,4473.2,0.112]
[1756912539108,1.2711,4473.3,4473.2,3.918]
[1756912539749,1.2711,4473.3,4473.2,2.34753608]
[1756912539922,1.2711,4473.3,4473.2,3.918]
[1756912540607,1.2711,4473.3,4473.2,0.112]
[1756912540806,1.2711,4473.3,4473.2,3.918]
[1756912541017,1.2711,4473.3,4473.2,0.112]
[1756912541219,1.2711,4473.3,4473.2,3.918]
[1756912541637,3.5065861,4473.3,4473.2,0.112]
[1756912541866,3.5065861,4473.3,4472.9,1.719]
[1756912541867,2.23563603,4473.0,4472.9,1.719]
[1756912542069,3.50473603,4473.0,4472.9,5.525]
[1756912542856,1.2691,4473.0,4472.9,5.525]
[1756912543059,0.3032,4473.0,4472.9,6.0887]
[1756912543258,0.7651,4473.0,4472.9,8.32438602]
[1756912543422,0.002,4473.3,4472.9,6.0887]
[1756912543622,0.4619,4473.2,4473.0,2.23563603]
[1756912543867,0.002,4473.3,4473.1,3.918]
[1756912544026,0.504,4473.2,4473.1,3.918]
[1756912544221,0.8072,4473.2,4473.1,3.918]
[1756912544422,0.8072,4473.2,4473.1,6.15358605]
[1756912544423,0.7651,4473.2,4473.1,6.15358605]
[1756912545164,0.7651,4473.2,4473.1,3.918]
[1756912545373,0.7651,4473.2,4473.1,6.15358605]
[1756912545526,0.7651,4473.2,4473.1,3.918]
[1756912545728,1.2691,4473.2,4473.1,3.918]
[1756912545961,0.7651,4473.2,4473.1,3.918]
[1756912546962,0.025,4473.8,4473.1,3.918]
[1756912546963,0.38489216,4474.3,4473.4,0.792]
[1756912547249,0.4619,4474.0,4473.8,2.23522008]
[1756912547449,0.4619,4474.5,4474.2,0.112]
[1756912547776,0.025,4474.8,4474.2,3.806]
[1756912547977,2.53818647,4474.3,4474.2,3.331]
[1756912548136,6.11208647,4474.3,4474.2,3.331]
[1756912548661,2.23513634,4474.0,4473.9,1.719]
[1756912548862,2.23513634,4474.0,4473.9,5.524]
[1756912549083,3.50423634,4474.0,4473.9,5.524]
[1756912549600,3.61623634,4474.0,4473.9,5.524]
[1756912551081,0.8771,4474.0,4473.9,5.524]
[1756912551252,0.002,4474.2,4473.9,6.1884]
[1756912551666,0.002,4474.2,4473.9,8.93117402]
[1756912551864,0.3032,4474.0,4473.9,2.3834]
[1756912552073,0.7651,4474.0,4473.9,1.831]
[1756912552282,0.002,4474.2,4473.9,5.636]
[1756912552484,0.3032,4474.0,4473.9,1.831]
[1756912552677,0.7651,4474.0,4473.9,5.636]
[1756912553898,3.50423634,4474.0,4473.9,1.831]
[1756912554198,3.61623634,4474.0,4473.9,5.524]
[1756912555057,3.61623634,4474.0,4473.9,1.719]
[1756912555396,2.23538616,4473.5,4473.4,0.112]
[1756912555576,2.23538616,4473.5,4473.4,3.917]
[1756912555899,3.61648616,4473.5,4473.4,3.805]
[1756912556397,3.61568616,4473.5,4473.4,3.805]
[1756912556591,3.11248616,4473.5,4473.4,3.805]
[1756912557004,3.61648616,4473.5,4473.4,3.805]
[1756912557204,1.3811,4473.5,4473.4,3.804]
[1756912557365,2.2354861,4473.3,4473.2,1.719]
[1756912557565,3.5045861,4473.3,4473.2,5.523]
[1756912557990,6.5045861,4473.3,4473.2,5.523]
[1756912558593,6.5045861,4473.3,4473.2,1.719]
[1756912558804,6.5045861,4473.3,4473.2,5.523]
[1756912559298,5.23553608,4473.2,4473.1,0.001]
[1756912559591,6.31103608,4473.2,4473.1,0.001]
[1756912559893,6.61173608,4473.2,4473.1,3.805]
[1756912560685,6.61173608,4473.2,4473.1,0.001]
[1756912561763,10.41573608,4473.2,4473.1,0.001]
[1756912562000,10.41573608,4473.2,4472.8,1e-08]
[1756912562001,2.23568602,4472.9,4472.8,1e-08]
[1756912562199,5.34768602,4472.9,4472.8,1e-08]
[1756912562371,6.61608602,4472.9,4472.8,1e-08]
[1756912563396,10.42008602,4472.9,4472.8,1e-08]
[1756912563798,6.61608602,4472.9,4472.8,1e-08]
[1756912563997,10.42008602,4472.9,4472.8,1e-08]
[1756912564602,6.61608602,4472.9,4472.8,1e-08]
[1756912564803,2.64838602,4472.9,4472.8,1e-08]
[1756912565667,0.112,4472.9,4472.8,1e-08]
[1756912565872,2.34768602,4472.9,4472.8,0.29860001]
[1756912566073,0.112,4472.9,4472.8,0.29860001]
[1756912566273,2.23544011,4473.4,4472.8,0.80590001]
[1756912566473,2.3476031,4473.1,4472.8,0.80590001]
[1756912566776,0.112,4473.1,4472.9,0.5073]
[1756912567089,0.4661,4473.8,4473.0,1.2559]
[1756912567090,2.34740376,4473.5,4473.0,1.2559]
[1756912567290,0.112,4473.5,4473.1,0.5073]
[1756912567507,0.112,4473.5,4472.9,0.41850889]
[1756912567508,0.112,4473.5,4473.4,0.2986]
[1756912567686,0.112,4473.5,4473.4,0.8059]
[1756912567884,2.23519777,4473.9,4473.4,4.6109]
[1756912568205,0.112,4473.7,4473.5,0.5073]
[1756912568381,0.112,4473.7,4473.6,0.2986]
[1756912569401,0.112,4473.7,4473.6,3.804]
[1756912569572,2.34728622,4473.7,4473.6,3.804]
[1756912570000,0.112,4473.7,4473.6,3.804]
[1756912570405,0.002,4474.2,4473.6,4.6099]
[1756912570607,0.112,4474.1,4473.6,5.07312549]
[1756912570814,0.112,4474.1,4473.6,4.56582549]
[1756912571110,0.112,4474.1,4473.7,0.5073]
[1756912571287,0.112,4474.1,4473.6,4.71722549]
[1756912571482,0.112,4474.1,4473.8,0.5073]
[1756912572520,2.23529217,4473.7,4473.2,1.719]
[1756912572727,2.23529217,4473.7,4473.3,3.804]
[1756912573328,0.112,4473.8,4473.3,3.804]
[1756912573529,0.112,4473.8,4473.6,0.2986]
[1756912574033,0.002,4474.2,4473.7,0.5073]
[1756912574201,0.112,4474.1,4473.8,3.804]
[1756912574708,2.23525485,4473.8,4473.5,0.112]
[1756912574925,2.23525485,4473.8,4473.6,3.804]
[1756912575231,2.23527561,4473.8,4473.2,1.719]
[1756912575532,0.112,4473.7,4473.6,3.804]
[1756912576614,0.112,4474.1,4473.6,5.0599]
[1756912576936,0.112,4474.1,4473.7,0.5073]
[1756912577229,0.112,4474.1,4474.0,0.2986]
[1756912577529,2.3470889,4474.1,4474.0,3.804]
[1756912577718,2.6477889,4474.1,4474.0,3.804]
[1756912577918,0.4127,4474.1,4473.2,1.719]
[1756912578119,0.112,4473.7,4473.3,3.804]
[1756912578320,2.34728967,4473.7,4473.3,3.804]
[1756912578523,2.34732769,4473.7,4473.3,3.804]
[1756912578704,0.112,4473.7,4473.3,3.804]
[1756912579032,0.112,4473.7,4473.4,3.804]
[1756912579248,2.34729764,4473.7,4473.4,3.804]
[1756912579402,0.112,4473.7,4473.5,3.803]
[1756912579803,0.112,4473.7,4473.2,2.2263]
[1756912580030,0.112,4473.7,4473.3,3.803]
[1756912580640,0.112,4473.7,4473.3,4.3103]
[1756912580935,0.1112,4473.7,4473.3,4.3103]
[1756912581237,0.1112,4473.7,4473.6,0.2986]
[1756912581605,2.34709432,4474.1,4473.6,0.8059]
[1756912581802,0.112,4474.1,4473.7,4.3103]
[1756912582035,0.112,4474.1,4474.0,0.2986]
[1756912582931,0.112,4474.1,4473.8,0.5073]
[1756912583844,2.34709174,4474.1,4473.8,0.5073]
[1756912584157,2.34709174,4474.1,4473.7,3.803]
[1756912584158,2.23513634,4474.0,4473.7,3.803]
[1756912584359,2.34712503,4474.1,4473.7,3.803]
[1756912584576,0.112,4474.1,4473.7,3.803]
[1756912584727,0.112,4474.1,4473.8,3.803]
[1756912584928,0.002,4474.2,4474.0,0.4106]
[1756912585162,0.002,4474.2,4474.1,1.719]
[1756912585330,0.002,4474.2,4474.1,2.2263]
[1756912585529,0.002,4474.2,4474.1,4.75998638]
[1756912585725,0.002,4474.2,4474.1,2.5249]
[1756912585925,0.002,4474.2,4474.1,6.3279]
[1756912588354,0.002,4474.2,4474.1,7.12980335]
[1756912588532,0.002,4474.2,4474.1,2.36950335]
[1756912588730,0.002,4474.2,4474.1,5.8206]
[1756912589555,0.3027,4474.2,4474.1,1.719]
[1756912589756,0.002,4474.2,4474.1,5.522]
[1756912589961,0.002,4474.2,4474.1,6.3379]
[1756912590361,0.002,4474.2,4474.1,5.8149]
[1756912590748,0.002,4474.2,4474.1,2.0129]
[1756912590960,0.002,4474.2,4474.1,5.8149]
[1756912591198,0.002,4474.2,4473.4,1.719]
[1756912591199,0.3044,4474.2,4473.4,1.719]
[1756912591482,0.112,4473.7,4473.2,0.112]
[1756912591696,2.23533619,4473.6,4473.3,2.764]
[1756912591899,0.3024,4473.4,4473.3,2.764]
[1756912592207,0.752,4473.4,4473.3,2.764]
[1756912592700,2.23537755,4473.6,4473.3,2.764]
[1756912592898,2.34729434,4473.7,4473.5,0.2939]
[1756912593097,2.53773619,4473.6,4473.4,3.802]
[1756912593301,2.53773619,4473.6,4472.9,0.634]
[1756912593302,2.23539813,4473.5,4472.9,0.634]
[1756912593482,2.23539813,4473.5,4473.2,3.802]
[1756912593691,0.112,4473.7,4473.2,3.802]
[1756912593857,0.112,4473.7,4473.3,0.522]
[1756912595004,0.112,4473.7,4473.6,0.2939]
[1756912595207,0.002,4474.2,4473.6,2.5349]
[1756912595405,0.002,4474.2,4473.9,0.112]
[1756912595786,0.3024,4474.0,4473.9,0.112]
[1756912596111,0.3024,4474.0,4473.9,3.914]
[1756912597223,2.53753634,4474.0,4473.9,0.112]
[1756912597411,0.752,4474.0,4473.9,2.591]
[1756912597929,2.98714828,4474.0,4473.9,2.591]
[1756912598218,2.23520359,4473.9,4473.6,1.719]
[1756912598393,0.752,4474.0,4473.6,1.719]
[1756912598394,2.53754174,4474.0,4473.7,3.802]
[1756912598597,0.112,4474.1,4473.9,0.2939]
[1756912598796,2.23513634,4474.0,4473.7,3.802]
[1756912599007,2.23513634,4474.0,4473.8,3.802]
[1756912599208,2.53758816,4473.9,4473.6,1.719]
[1756912599412,2.23523626,4473.8,4473.7,3.802]
[1756912599589,2.53763626,4473.8,4473.7,3.802]
[1756912599921,0.3024,4473.8,4473.7,3.802]
[1756912600815,0.752,4473.8,4473.7,3.802]
[1756912601014,0.3024,4473.8,4473.7,3.802]
[1756912601900,0.752,4473.8,4473.7,3.802]
[1756912602100,0.112,4474.1,4473.7,4.6179]
[1756912602401,0.002,4474.2,4474.0,0.792]
[1756912602595,0.002,4474.2,4474.1,6.82908638]
[1756912602823,0.002,4474.2,4474.1,7.12298638]
[1756912603099,0.002,4474.2,4474.1,8.11718638]
[1756912604205,0.002,4474.2,4474.1,2.0801]
[1756912604405,0.002,4474.2,4474.1,0.8159]
[1756912604629,0.002,4474.2,4474.1,4.0949]
[1756912604834,0.002,4474.2,4474.1,6.85198638]
[1756912605394,0.0012,4474.2,4474.1,7.32418638]
[1756912606430,0.0012,4474.2,4474.1,4.6169]
[1756912606623,0.0012,4474.2,4474.1,7.53718907]
[1756912606820,0.0012,4474.2,4474.1,5.30210269]
[1756912607028,0.0012,4474.2,4474.1,8.00938907]
[1756912607207,0.0012,4474.2,4474.1,7.53718907]
[1756912608303,0.0012,4474.2,4474.1,1.50110269]
[1756912608531,0.0012,4474.2,4474.1,3.801]
[1756912608834,0.3036,4474.2,4474.1,3.801]
[1756912609014,0.3036,4474.2,4474.1,4.0949]
[1756912609015,0.0012,4474.2,4474.1,4.0949]
[1756912609610,0.0012,4474.2,4474.1,0.2939]
[1756912609816,0.0012,4474.2,4474.1,4.0949]
[1756912610436,0.0012,4474.2,4474.1,3.801]
[1756912610641,0.0012,4474.2,4473.8,0.522]
[1756912610642,0.3036,4474.2,4473.8,0.522]
[1756912610812,0.3036,4474.2,4473.9,3.801]
[1756912611017,0.3036,4474.2,4474.0,3.801]
[1756912611018,2.68468638,4474.1,4474.0,3.801]
[1756912611417,2.98708638,4474.1,4474.0,3.801]
[1756912612025,2.98708638,4474.1,4473.6,1.72]
[1756912612334,0.4496,4474.0,4473.8,0.112]
[1756912612636,0.3024,4473.9,4473.8,0.112]
[1756912612959,0.3024,4473.9,4473.8,3.912]
[1756912613137,2.9871863,4473.9,4473.6,1.72]
[1756912613318,2.23528622,4473.7,4473.6,1.72]
[1756912613516,3.50508622,4473.7,4473.6,5.52]
[1756912614408,6.50508622,4473.7,4473.6,1.72]
[1756912614606,6.50508622,4473.7,4473.6,0.001]
[1756912619243,10.30608622,4473.7,4473.6,0.001]
[1756912619952,17.46608622,4473.7,4473.6,0.001]
[1756912620160,20.28428447,4473.2,4473.1,1e-08]
[1756912620468,32.14928447,4473.2,4473.1,1e-08]
[1756912620627,33.36598447,4473.2,4473.1,1e-08]
[1756912621354,32.57398447,4473.2,4473.1,1e-08]
[1756912623791,13.23493608,4473.2,4473.1,1e-08]
[1756912623939,2.23546536,4473.4,4473.1,0.79890001]
[1756912624142,2.64273608,4473.2,4473.1,1e-08]
[1756912625098,2.64273608,4473.2,4473.1,0.79890001]
[1756912625099,2.34753608,4473.2,4473.1,0.79890001]
[1756912625386,2.34753608,4473.2,4473.1,0.31110001]
[1756912625683,2.34753608,4473.2,4473.1,1e-08]
[1756912625684,3.07493608,4473.2,4473.1,1e-08]
[1756912628244,9.87593608,4473.2,4473.1,1e-08]
[1756912628591,9.14853608,4473.2,4473.1,1e-08]
[1756912629089,9.44373608,4473.2,4473.1,1e-08]
[1756912629872,9.44293608,4473.2,4473.1,1e-08]
[1756912630985,9.87513608,4473.2,4473.1,1e-08]
[1756912631848,9.14773608,4473.2,4473.1,1e-08]
[1756912632481,9.44293608,4473.2,4473.1,1e-08]
[1756912633460,5.34673608,4473.2,4473.1,1e-08]
[1756912633666,9.14773608,4473.2,4473.1,1e-08]
[1756912634384,5.34673608,4473.2,4473.1,1e-08]
[1756912634551,9.14773608,4473.2,4473.1,1e-08]
[1756912634751,16.30773608,4473.2,4473.1,1e-08]
[1756912634951,12.50673608,4473.2,4473.1,1e-08]
[1756912635151,16.30773608,4473.2,4473.1,1e-08]
[1756912635359,12.50673608,4473.2,4473.1,1e-08]
[1756912635580,16.30773608,4473.2,4473.1,1e-08]
[1756912636184,12.50673608,4473.2,4473.1,0.31110001]
[1756912636391,16.30853608,4473.2,4473.1,0.79890001]
[1756912636692,12.50753608,4473.2,4473.1,0.79890001]
[1756912636858,12.50753608,4473.2,4473.1,1.26860001]
[1756912637053,0.112,4473.2,4473.1,1.26860001]
[1756912637253,0.67222447,4474.0,4473.2,2.23549529]
[1756912637468,0.112,4474.1,4473.9,0.3111]
[1756912637669,2.23513634,4474.0,4473.9,0.3111]
[1756912637863,2.23513634,4474.0,4473.9,1.2686]
[1756912638551,0.2952,4474.0,4473.6,0.112]
[1756912638752,0.0012,4474.2,4473.9,0.3111]
[1756912639182,0.0012,4474.2,4474.0,0.4878]
[1756912639183,2.23508638,4474.1,4474.0,0.4878]
[1756912639387,2.23508638,4474.1,4474.0,0.7989]
[1756912639586,2.34708638,4474.1,4474.0,0.7989]
[1756912639952,0.4072,4474.1,4473.3,0.112]
[1756912640156,2.3473302,4473.7,4473.1,1.71900001]
[1756912640386,2.3473302,4473.7,4473.6,0.3111]
[1756912640578,2.3473302,4473.7,4473.6,1.2686]
[1756912640779,2.3473302,4473.7,4473.6,0.7989]
[1756912641577,0.112,4473.7,4473.6,0.7989]
[1756912641776,2.34728622,4473.7,4473.6,1.2686]
[1756912642287,0.112,4473.7,4473.6,1.2686]
[1756912642488,2.23513789,4474.0,4473.6,1.39546]
[1756912642489,0.112,4474.0,4473.6,1.39546]
[1756912642662,0.002,4474.1,4474.0,2.23513634]
[1756912642996,0.002,4474.1,4474.0,7.75413634]
[1756912643184,0.002,4474.1,4474.0,9.02273634]
[1756912643576,2.23664883,4475.0,4474.0,6.7876]
[1756912643772,2.23664883,4475.0,4474.1,1.39007523]
[1756912643976,2.23479055,4474.7,4474.1,1.85977523]
[1756912644190,0.002,4475.0,4474.6,0.3111]
[1756912644395,2.23478668,4474.7,4474.6,0.3111]
[1756912644762,2.23478668,4474.7,4474.6,0.7989]
[1756912645505,2.23490289,4474.5,4474.1,0.4697]
[1756912645670,2.23471746,4474.9,4474.1,3.799]
[1756912645864,2.23482533,4474.7,4474.4,0.3111]
[1756912646167,2.23482533,4474.7,4474.4,0.7989]
[1756912646367,2.23483879,4474.6,4474.4,0.7989]
[1756912646983,2.23488657,4474.5,4474.4,0.7989]
[1756912647286,2.23483436,4474.7,4474.4,0.7989]
[1756912647883,2.234837,4474.6,4474.4,0.7989]
[1756912648083,0.025,4474.8,4474.4,0.7989]
[1756912648285,2.23484694,4474.6,4474.4,0.7989]
[1756912648594,0.025,4474.8,4474.5,0.4878]
[1756912648890,2.23483663,4474.6,4474.5,0.4878]
[1756912649088,2.23483663,4474.6,4474.5,0.7989]
[1756912649388,2.23478846,4474.7,4474.5,0.7989]
[1756912649690,2.23478846,4474.7,4474.6,0.4878]
[1756912649867,2.25974714,4474.8,4474.6,0.804]
[1756912650193,2.25975162,4474.8,4474.7,0.5046]
[1756912650395,2.25975162,4474.8,4474.7,0.8208]
[1756912650558,2.25975162,4474.8,4474.7,0.3162]
[1756912650760,2.2348699,4474.6,4474.2,4.3036]
[1756912650955,2.2348699,4474.6,4474.5,0.3162]
[1756912651185,2.23483663,4474.6,4474.5,0.8208]
[1756912651384,2.23478803,4474.7,4474.5,0.8208]
[1756912651567,0.025,4474.8,4474.6,0.9612]
[1756912652001,2.25977174,4474.8,4474.7,0.8208]
[1756912652298,0.025,4474.8,4474.7,7.43192668]
[1756912652680,0.025,4474.8,4474.7,11.34192668]
[1756912653061,0.025,4474.8,4474.7,6.10714]
[1756912653391,0.025,4474.8,4474.7,4.54392668]
[1756912653560,0.025,4474.8,4474.7,8.36427454]
[1756912653755,0.025,4474.8,4474.7,8.34192668]
[1756912654375,0.0242,4474.8,4474.7,8.34192668]
[1756912655298,0.0242,4474.8,4474.7,4.54392668]
[1756912655489,0.0242,4474.8,4474.7,8.36427454]
[1756912655669,0.0242,4474.8,4474.7,8.50696764]
[1756912656570,0.0242,4474.8,4474.7,4.70896764]
[1756912656972,0.0242,4474.8,4474.7,8.50696764]
[1756912657372,0.0242,4474.8,4474.7,8.34192668]
[1756912658188,0.0262,4474.8,4474.7,8.34192668]
[1756912658786,0.0262,4474.8,4474.7,0.55594]
[1756912658986,0.0262,4474.8,4474.7,6.00074786]
[1756912659174,0.002,4475.3,4475.0,0.792]
[1756912659374,0.002,4475.3,4475.2,6.026537]
[1756912659569,0.002,4475.3,4475.2,6.342737]
[1756912659784,0.002,4475.3,4475.2,10.644337]
[1756912659983,0.002,4475.3,4475.2,8.41903439]
[1756912660305,0.002,4475.3,4475.2,5.41903439]
[1756912660506,0.002,4475.3,4475.2,7.756337]
[1756912660710,0.002,4475.3,4475.2,8.212937]
[1756912661207,0.002,4475.3,4475.2,7.756337]
[1756912661794,0.002,4475.3,4475.2,1.7248]
[1756912662101,0.002,4475.3,4475.2,0.904]
[1756912662480,0.002,4475.3,4475.2,7.251737]
[1756912662681,0.002,4475.3,4475.2,8.37217819]
[1756912662880,0.002,4475.3,4475.2,6.13764119]
[1756912663309,0.7616,4475.3,4475.2,3.909]
[1756912664277,0.002,4475.3,4475.2,3.909]
[1756912664481,0.002,4475.3,4475.2,4.2252]
[1756912665006,0.002,4475.3,4475.2,3.909]
[1756912665399,0.3016,4475.3,4475.2,3.909]
[1756912665989,0.7616,4475.3,4475.2,0.112]
[1756912666183,0.002,4475.3,4475.2,6.347737]
[1756912666418,0.002,4475.3,4475.2,5.25524147]
[1756912666997,0.002,4475.3,4475.2,3.909]
[1756912667205,0.7616,4475.3,4475.2,3.909]
[1756912667519,0.7616,4475.3,4475.2,0.112]
[1756912667684,0.002,4475.3,4475.2,3.909]
[1756912668734,0.002,4475.3,4475.2,0.112]
[1756912669043,0.3016,4475.3,4475.2,3.909]
[1756912669200,0.7616,4475.3,4475.2,3.909]
[1756912669386,0.002,4475.3,4475.2,3.909]
[1756912669792,0.002,4475.3,4475.2,4.2242]
[1756912669987,0.002,4475.3,4475.2,7.27642542]
[1756912670505,0.002,4475.3,4475.2,5.54648842]
[1756912670703,0.002,4475.3,4475.2,5.04188842]
[1756912670903,0.3016,4475.3,4475.2,0.92968842]
[1756912671105,0.7616,4475.3,4475.2,3.908]
[1756912672793,0.7616,4475.3,4475.2,0.112]
[1756912672996,0.7616,4475.3,4475.2,3.908]
[1756912673198,1.2625,4475.3,4475.2,0.112]
[1756912673402,1.2625,4475.3,4474.6,0.001]
[1756912673403,1.3745,4475.3,4474.6,0.001]
[1756912673631,0.112,4475.0,4474.7,2.015]
[1756912673832,2.53433674,4474.8,4474.7,2.015]
[1756912674141,3.49523674,4474.8,4474.7,2.015]
[1756912674497,2.23478668,4474.7,4474.6,0.001]
[1756912674741,2.34678668,4474.7,4474.6,0.001]
[1756912674940,3.60728668,4474.7,4474.6,0.001]
[1756912677509,6.60728668,4474.7,4474.6,0.001]
[1756912678739,6.60648668,4474.7,4474.6,0.001]
[1756912679850,13.76648668,4474.7,4474.6,0.001]
[1756912680454,14.85584951,4474.7,4474.6,0.001]
[1756912682348,15.02119256,4474.7,4474.6,0.001]
[1756912683440,14.56348668,4474.7,4474.6,0.001]
[1756912683617,13.95058668,4474.7,4474.6,0.001]
[1756912683817,16.95058668,4474.7,4474.6,0.001]
[1756912684235,9.69358668,4474.7,4474.6,0.001]
[1756912684542,2.52048668,4474.7,4474.6,0.001]
[1756912684745,2.23478668,4474.7,4474.6,0.001]
[1756912685411,2.52048668,4474.7,4474.6,0.001]
[1756912685841,2.99388668,4474.7,4474.6,0.001]
[1756912688412,2.23478668,4474.7,4474.6,0.001]
[1756912689240,2.52048668,4474.7,4474.6,0.001]
[1756912689445,2.99388668,4474.7,4474.6,0.001]
[1756912690145,6.46438668,4474.7,4474.6,0.001]
[1756912690529,6.76174951,4474.7,4474.6,0.001]
[1756912691352,7.25638668,4474.7,4474.6,0.001]
[1756912692350,11.05338668,4474.7,4474.6,0.001]
[1756912693655,5.63248668,4474.7,4474.6,0.001]
[1756912693858,2.34678668,4474.7,4474.6,0.001]
[1756912694350,9.43148668,4474.7,4474.6,0.001]
[1756912695059,5.34878668,4474.7,4474.6,0.8145]
[1756912696239,5.34878668,4474.7,4474.6,0.3162]
[1756912696572,5.34878668,4474.7,4474.6,0.8145]
[1756912696776,2.34878668,4474.7,4474.6,0.8145]
[1756912697568,2.34878668,4474.7,4474.6,0.3162]
[1756912698073,2.34878668,4474.7,4474.6,0.001]
[1756912699392,2.34878668,4474.7,4474.6,0.8145]
[1756912699580,2.34878668,4474.7,4474.6,0.001]
[1756912699883,9.43148668,4474.7,4474.6,0.001]
[1756912700053,9.90488668,4474.7,4474.6,0.001]
[1756912700684,9.14578668,4474.7,4474.6,0.8145]
[1756912700889,9.90488668,4474.7,4474.6,0.001]
[1756912701046,10.37538668,4474.7,4474.6,0.001]
[1756912701242,10.51707669,4474.7,4474.6,0.001]
[1756912701466,10.37538668,4474.7,4474.6,0.001]
[1756912702447,10.67274951,4474.7,4474.6,0.001]
[1756912703261,10.37538668,4474.7,4474.6,0.001]
[1756912703500,10.37458668,4474.7,4474.6,0.001]
[1756912703864,9.43068668,4474.7,4474.6,0.001]
[1756912704062,9.90408668,4474.7,4474.6,0.001]
[1756912704559,9.14498668,4474.7,4474.6,0.001]
[1756912705382,5.63368668,4474.7,4474.6,0.001]
[1756912705665,5.34878668,4474.7,4474.6,1.2482]
[1756912705870,5.34878668,4474.7,4474.6,0.8145]
[1756912706069,5.34878668,4474.7,4474.6,0.3162]
[1756912706692,5.34878668,4474.7,4474.6,0.8145]
[1756912707094,5.34878668,4474.7,4474.6,0.3162]
[1756912707901,5.34878668,4474.7,4474.6,0.8145]
[1756912708263,5.34878668,4474.7,4474.6,1.2482]
[1756912708869,5.34878668,4474.7,4474.6,0.8145]
[1756912709614,5.66278668,4474.7,4474.6,0.001]
[1756912709908,5.34878668,4474.7,4474.6,0.3111]
[1756912710109,5.34878668,4474.7,4474.6,0.7903]
[1756912710267,5.34878668,4474.7,4474.6,0.3111]
[1756912710467,5.34878668,4474.7,4474.6,0.001]
[1756912710674,0.002,4474.7,4474.6,1.2492]
[1756912710875,2.23678668,4474.7,4474.6,1.37412]
[1756912711103,2.23678668,4474.7,4474.6,1.2492]
[1756912712977,2.23678668,4474.7,4474.6,0.7903]
[1756912713384,2.55078668,4474.7,4474.6,0.001]
[1756912713709,5.55078668,4474.7,4474.6,0.001]
[1756912714214,5.23678668,4474.7,4474.6,0.3111]
[1756912715292,9.03378668,4474.7,4474.6,0.3111]
[1756912716101,9.03378668,4474.7,4474.6,0.001]
[1756912716981,9.34778668,4474.7,4474.6,0.001]
[1756912717317,9.03378668,4474.7,4474.6,0.001]
[1756912717913,9.03378668,4474.7,4474.6,0.3111]
[1756912719630,9.03378668,4474.7,4474.6,0.001]
[1756912719631,9.19972849,4474.7,4474.6,0.001]
[1756912719833,5.08872849,4474.7,4474.6,0.001]
[1756912720222,0.4792,4475.0,4474.6,0.7903]
[1756912720538,2.23473674,4474.8,4474.7,0.4792]
[1756912720734,2.23473674,4474.8,4474.7,0.7893]
[1756912721302,2.34666917,4475.0,4474.7,0.7893]
[1756912721303,0.112,4475.0,4474.7,0.7893]
[1756912721526,0.002,4475.2,4474.8,2.67944736]
[1756912721713,0.002,4475.2,4475.1,0.112]
[1756912722019,0.002,4475.2,4475.1,0.4221]
[1756912722223,0.002,4475.2,4475.1,1.3602]
[1756912723734,0.002,4475.2,4475.1,3.59478693]
[1756912723923,0.002,4475.2,4475.1,4.38678693]
[1756912724124,0.002,4475.2,4475.1,5.24317905]
[1756912724330,0.002,4475.2,4475.1,5.22083319]
[1756912724542,0.002,4475.2,4475.1,12.01683319]
[1756912726740,0.002,4475.2,4475.1,8.22083319]
[1756912726963,0.002,4475.2,4475.1,12.01683319]
[1756912727515,0.002,4475.2,4475.1,8.22083319]
[1756912727738,0.002,4475.2,4475.1,12.01683319]
[1756912728335,0.0012,4475.2,4475.1,12.01583319]
[1756912732540,0.0012,4475.2,4475.1,7.76193319]
[1756912732747,0.0012,4475.2,4475.1,6.96993319]
[1756912733066,0.0012,4475.2,4475.1,7.76193319]
[1756912733268,0.0012,4475.2,4475.1,10.76493319]
[1756912733474,0.0012,4475.2,4475.1,11.55693319]
[1756912734577,0.0012,4475.2,4475.1,12.01583319]
[1756912736336,0.0012,4475.2,4475.1,11.55593319]
[1756912737010,0.0012,4475.2,4475.1,12.01483319]
[1756912739151,0.0012,4475.2,4475.1,12.23883319]
[1756912739346,0.0012,4475.2,4475.1,12.01483319]
[1756912740285,0.0012,4475.2,4475.1,8.22083319]
[1756912740438,0.0012,4475.2,4475.1,12.01483319]
[1756912740869,0.0012,4475.2,4475.1,7.76193319]
[1756912741087,0.0012,4475.2,4475.1,11.55593319]
[1756912742880,0.0012,4475.2,4475.1,11.98643319]
[1756912743371,0.002,4475.6,4475.5,3.02638721]
[1756912743598,0.002,4475.6,4475.5,12.86932239]
[1756912743785,0.002,4475.6,4475.5,14.18537852]
[1756912743990,0.002,4475.6,4475.5,13.75487852]
[1756912744886,0.002,4475.6,4475.5,8.03092593]
[1756912745103,0.002,4475.6,4475.5,13.75487852]
[1756912745410,0.002,4475.6,4475.5,16.75487852]
[1756912745619,0.002,4475.6,4475.5,17.18537852]
[1756912746209,0.002,4476.1,4475.8,2.23420712]
[1756912746382,0.002,4476.1,4476.0,8.75009021]
[1756912746714,0.002,4476.1,4476.0,14.53829021]
[1756912747024,0.002,4476.1,4476.0,15.45749021]
[1756912747187,0.002,4476.1,4476.0,14.43653711]